Cogmind - Beta 16.1 @@@ ROGUE MODE // 2026.02.21 @ 01:00:26 Player: Ceorik Result: Destroyed by Y-54 Guardian via exploding Nuclear Reactor Performance ------------- Evolutions (4) 2000 Regions Visited (7) 1400 Robots Destroyed (51) 255 Value Destroyed (1714) 1714 Prototype IDs (6) 120 Alien Tech Used (0) 0 Bonus (0) 0 TOTAL SCORE: 5489 Bonus ------- None Cogmind --------- Core Integrity 0/850 Matter 300/300 Energy 150/150 System Corruption 0% Temperature Cool (0) Movement Walking (120) Location -6/Factory Parts ------- > --- POWER (2) -------- Light Angular Momentum Engine > --- PROPULSION (4) --- Flexi-carbon Leg Flexi-carbon Leg > --- UTILITY (7) ------ Improved Signal Interpreter Advanced Signal Interpreter Improved Melee Analysis Suite Improved Melee Analysis Suite Improved Melee Analysis Suite Makeshift Hacking Suite > --- WEAPON (2) ------- Power Sword > --- INVENTORY (5) ---- Gatling Laser Gauss Rifle Gauss Rifle Hypervelocity Gauss Rifle Peak State ------------ > --- POWER ------------ Micro Nuclear Core Light Angular Momentum Engine > --- PROPULSION ------- Flexi-carbon Leg Flexi-carbon Leg > --- UTILITY ---------- Improved Signal Interpreter Advanced Signal Interpreter Improved Melee Analysis Suite Improved Melee Analysis Suite Improved Melee Analysis Suite EM Disruption Field Makeshift Hacking Suite > --- WEAPON ----------- Remote Datajack Power Sword > --- INVENTORY -------- Gatling Laser Gauss Rifle Gauss Rifle Hypervelocity Gauss Rifle [Rating: 57] Favorites ----------- Power Nuclear Core Engine Light Ion Engine Power Core Nuclear Core Propulsion Light Treads Treads Light Treads Leg Flexi-carbon Leg Hover Unit Gravmag System Flight Unit Xenon Bombardment Thruster Utility Improved Melee Analysis Suite Device Improved Heat Sink Storage Large Storage Unit Processor Improved Melee Analysis Suite Hackware Makeshift Hacking Suite Protection Utility Shielding Weapon Katana Energy Gun Heavy EM Shotgun Energy Cannon Light EM Pulse Cannon Ballistic Gun Assault Rifle Ballistic Cannon Gauss Cannon Launcher Rocket Launcher Special Weapon Remote Datajack Slashing Weapon Katana Special Melee Weapon Improved Datajack Build | -11 -10 -9 -8 -7 -7 -7 -6 ------- Run | Yrd Mat Mat Mat Fac Low Low Fac Slots Evolved 8 | . . 2 2 2 . . 2 Power 1 | . . . . 1 . . . Propulsion 2 | . . 1 . . . . 1 Utility 5 | . . 1 2 1 . . 1 Weapon . | . . . . . . . . Parts Attached 73 | 7 4 12 11 18 4 2 15 Power 11 | 1 . 3 . 2 1 1 3 Engine 4 | 1 . 2 . . . . 1 Core 7 | . . 1 . 2 1 1 2 Reactor . | . . . . . . . . Propulsion 19 | 2 . 2 3 6 1 1 4 Treads 6 | 2 . 2 2 . . . . Leg 4 | . . . . 2 . . 2 Wheel . | . . . . . . . . Hover 3 | . . . . 1 . . 2 Flight 6 | . . . 1 3 1 1 . Utility 24 | 1 2 3 5 7 1 . 5 Device 6 | . . 2 2 . . . 2 Storage 2 | 1 1 . . . . . . Processor 7 | . 1 . 1 3 . . 2 Hackware 3 | . . . . 1 1 . 1 Protection 6 | . . 1 2 3 . . . Artifact . | . . . . . . . . Weapon 19 | 3 2 4 3 3 1 . 3 Energy Gun 8 | 2 . 4 2 . . . . Energy Cannon 3 | . 2 . . 1 . . . Ballistic Gun 1 | 1 . . . . . . . Ballistic Cannon 1 | . . . . 1 . . . Launcher 1 | . . . . 1 . . . Special Weapon 1 | . . . . . . . 1 Impact Weapon . | . . . . . . . . Slashing Weapon 3 | . . . 1 . 1 . 1 Piercing Weapon . | . . . . . . . . Special Melee Weapon 1 | . . . . . . . 1 Unidentified Prototypes 6 | . . 3 3 . . . . Parts Lost 23 | . . . 1 4 3 4 11 Power 4 | . . . . 1 1 1 1 Propulsion 7 | . . . . 1 1 2 3 Utility 8 | . . . 1 2 . 1 4 Weapon 4 | . . . . . 1 . 3 Highest Loss Streak 6 | . . . 1 2 3 4 6 To Critical Strikes . | . . . . . . . . Average Backups 8 | . 6 12 14 11 4 3 3 Power 1 | . . 2 2 1 . . . Propulsion . | . . . . . 1 . . Utility 3 | . 2 5 4 4 2 2 . Weapon 3 | . 2 3 7 4 . . 2 Tool/Special . | . . . . . . . . Unused Backups 33 | . 2 7 4 15 1 . 4 Power 3 | . . 1 1 1 . . . Propulsion 1 | . . 1 . . . . . Utility 14 | . 1 3 2 7 1 . . Weapon 14 | . 1 2 1 6 . . 4 Tool/Special 1 | . . . . 1 . . . Average Slot Usage (%) 89 | . 94 92 99 96 87 70 71 Engine 3 | . 14 2 . . . . 1 Core 6 | . . 8 9 14 6 6 3 Treads 17 | . 28 28 27 16 . . . Leg 1 | . . . . 3 . . 5 Flight 3 | . . . . . 23 15 4 Device 4 | . . 9 11 4 . . 3 Storage 7 | . 14 11 9 4 . . . Processor 13 | . 10 1 1 10 30 30 31 Hackware 4 | . . . . 6 12 8 8 Protection 8 | . . 11 22 15 2 . . Energy Gun 5 | . 4 14 11 4 . . . Energy Cannon 4 | . 17 5 . . . . . Ballistic Gun 1 | . 4 . . . . . . Slashing Weapon 3 | . . . 6 4 7 7 5 Peak Build Rating 57 | 6 10 23 30 42 43 41 57 Average Rating 27 | 4 8 18 27 36 41 34 44 On Entrance 22 | . 6 8 22 29 42 41 34 Avg Prop Armor Cover (%) 6 | . . . . . . . 6 Naked Turns . | . . . . . . . . Heaviest Build 57 | 12 31 37 49 57 16 7 16 Greatest Support 60 | 40 40 60 60 60 18 18 40 Greatest Overweight (x) 3 | . . . . 2 . . 3 Average Overweight (x) . | . . . . . . . . Largest Inventory Capacity 15 | 8 15 15 15 15 5 5 5 Average Capacity 10 | 6 11 15 15 12 5 5 5 Most Carried 15 | 2 10 15 15 15 5 5 5 Average Carried 8 | . 6 12 14 11 4 3 3 Final Capacity 15 | 8 15 15 15 5 5 5 5 Final Carried 15 | 1 10 15 14 5 4 3 4 Class Distribution -------------------- 87% | Mutant 12% | Hacker-Mutant Dominant Class ---------------- Mutant | -10/Materials Mutant | -9/Materials Mutant | -8/Materials Mutant | -7/Factory Hacker-Mutant | -7/Lower Caves Mutant | -7/Lower Caves Mutant | -6/Factory Resources | -11 -10 -9 -8 -7 -7 -7 -6 ----------- Run | Yrd Mat Mat Mat Fac Low Low Fac Matter Collected 1116 | 221 98 152 145 308 53 . 139 Remotely . | . . . . . . . . Salvage Created 1900 | . 260 309 545 343 45 83 315 Parts 111 | . 17 20 25 18 3 9 19 Haulers Intercepted 3 | . . . 3 . . . . Recyclers Shooed . | . . . . . . . . Parts Field Recycled . | . . . . . . . . Retrieved Matter . | . . . . . . . . Parts Self-Destructed 10 | . . . . . 2 8 . Prevented 3 | . . . . . 3 . . Parts Restored . | . . . . . . . . Kills | -11 -10 -9 -8 -7 -7 -7 -6 ------- Run | Yrd Mat Mat Mat Fac Low Low Fac Combat Hostiles Destroyed 43 | . 9 7 7 9 2 4 5 Melee 18 | . . . 5 2 2 4 5 Guns 8 | . 2 5 1 . . . . Cannons 11 | . 5 . . 6 . . . AOE 5 | . 1 2 1 1 . . . Classes Destroyed 10 | . 3 2 2 3 . . . Builder 1 | . 1 . . . . . . Hauler 3 | . . . 3 . . . . Operator 3 | . . . 2 . . . 1 Watcher 1 | . . 1 . . . . . Swarmer 15 | . 6 3 . . 2 4 . Grunt 13 | . 3 1 5 3 . . 1 Brawler 1 | . . . . 1 . . . Sentry 8 | . . 3 2 2 . . 1 Hunter 3 | . . . . 1 . . 2 Programmer 3 | . . . . 2 . . 1 Best Kill Streak 5 | . 5 4 3 5 2 4 2 Combat Bots Only 5 | . 4 4 2 5 2 4 2 Max Kills in Single Turn 2 | . 2 2 1 1 1 1 1 Gunslinging 1 | . . 1 . . . . . Exploded 2 | . 1 2 1 1 . . . Melee 1 | . . . 1 1 1 1 1 Uniques/NPCs Destroyed . | . . . . . . . . Combat | -11 -10 -9 -8 -7 -7 -7 -6 -------- Run | Yrd Mat Mat Mat Fac Low Low Fac Hostile Shots Fired 467 | . 37 22 35 120 58 29 166 Missed 154 | . 10 3 8 39 38 10 46 Hits 313 | . 27 19 27 81 20 19 120 Projectile 313 | . 27 19 27 81 20 19 120 AOE 2 | . . . . 1 . . 1 Critical Strikes 4 | . 1 . 1 . . . 2 Actively Blocked 1 | . . . 1 . . . . Damage Taken 4182 | . 301 288 464 924 268 277 1660 Core 1297 | . 48 48 53 61 71 158 858 Absorbed by Shields . | . . . . . . . . Redirected to Shielding 69 | . . 10 58 1 . . . Regen/Repaired (Parts) 280 | . . 165 . . . . 115 Core Remaining (%) 83 | 100 80 88 90 . . 58 . Volleys Fired 64 | . 23 13 8 20 . . . Largest 2 | . 2 2 2 2 . . . Hottest 120 | . 112 100 105 120 . . . Shots Fired 103 | . 28 22 15 37 1 . . Gun 49 | . 6 22 15 6 . . . Cannon 50 | . 22 . . 28 . . . Launcher 4 | . . . . 3 1 . . Special . | . . . . . . . . Kinetic 20 | . 3 . . 17 . . . Thermal 20 | . . . 3 17 . . . Explosive 4 | . . . . 3 1 . . Electromagnetic 59 | . 25 22 12 . . . . Robot Hit Streak 15 | . 7 9 15 13 . . . Robot Miss Streak 4 | . 2 2 2 4 . . . Penetration Max . | . . . . . . . . Secondary Targets 2 | . . 1 1 . . . . Max Gunslinging Chain 1 | . . 1 1 . . . . Shots Hit Robots 137 | . 20 18 35 30 2 7 25 Core Hits 67 | . 9 12 17 16 1 4 8 Critical Kills . | . . . . . . . . Critical Parts Destroyed . | . . . . . . . . Critical Strikes 8 | . 1 . 2 3 . . 2 Blast 1 | . . . . 1 . . . Corrupt 1 | . 1 . . . . . . Sever 6 | . . . 2 2 . . 2 Melee Attacks 77 | . . . 29 8 3 10 27 Impact . | . . . . . . . . Slashing 75 | . . . 29 8 3 10 25 Piercing . | . . . . . . . . Sneak Attacks 4 | . . . 3 . . . 1 Combat Hostiles . | . . . . . . . . Follow-up Attacks . | . . . . . . . . Damage Inflicted 4766 | . 501 552 1183 1150 82 261 1037 Guns 704 | . 42 371 274 17 . . . Cannons 933 | . 361 . . 572 . . . Explosions 660 | . 98 181 76 305 . . . Melee 2469 | . . . 833 256 82 261 1037 Ramming . | . . . . . . . . Kinetic 367 | . 30 . . 337 . . . Thermal 643 | . 98 181 112 252 . . . Explosive 305 | . . . . 305 . . . Electromagnetic 982 | . 373 371 238 . . . . Impact . | . . . . . . . . Slashing 2469 | . . . 833 256 82 261 1037 Piercing . | . . . . . . . . Highest Corruption 3 | . . 3 . 2 2 2 . Average Corruption 2 | . . 3 . 2 2 2 . Corruption Purged . | . . . . . . . . Corruption Blocked . | . . . . . . . . Effects 25 | . . 11 . 6 4 4 . Message Errors 9 | . . 4 . 2 3 . . Matter Fused 6 | . . 4 . . . 2 . Heat Flow Errors 2 | . . . . 1 . 1 . Energy Discharges 3 | . . 1 . 1 . 1 . Data Loss (minor) 2 | . . 1 . 1 . . . Data Loss (major) 1 | . . 1 . . . . . Misfires 1 | . . . . . 1 . . Weapon Failures 1 | . . . . 1 . . . Overload Shots . | . . . . . . . . Overflow Damage 139 | . 3 4 7 . 23 25 77 Projectiles 3 | . 3 . . . . . . Explosions 4 | . . 4 . . . . . Melee 132 | . . . 7 . 23 25 77 Knockbacks 1 | . . . . 1 . . . Impact . | . . . . . . . . Kinetic 1 | . . . . 1 . . . Secondary . | . . . . . . . . Self-Inflicted Damage 135 | . . 85 50 . . . . Shots 3 | . . 2 1 . . . . Rammed . | . . . . . . . . Targets Rammed . | . . . . . . . . Kicked . | . . . . . . . . Crushed . | . . . . . . . . Highest Temperature 232 | . 116 19 25 232 5 150 24 Average Temperature 56 | . 47 9 15 77 3 82 24 Received Heat Transfer 1113 | . 144 33 225 321 78 . 312 Siege Activations . | . . . . . . . . Martial Activations . | . . . . . . . . Shielding Activations . | . . . . . . . . Robots Disrupted . | . . . . . . . . Combat Hostiles . | . . . . . . . . Robots Corrupted 1 | . 1 . . . . . . Combat Hostiles 1 | . 1 . . . . . . Parts Fried 5 | . 1 1 3 . . . . Impact Corruptions . | . . . . . . . . Robots Melted . | . . . . . . . . Combat Hostiles . | . . . . . . . . Parts Melted 1 | . . . . 1 . . . Heat Transferred 1061 | . 150 250 174 487 . . . Parts Sabotaged . | . . . . . . . . Parts Stolen . | . . . . . . . . Parts Stripped . | . . . . . . . . Power Chain Reactions 7 | . 2 3 2 . . . . Alert | -11 -10 -9 -8 -7 -7 -7 -6 ------- Run | Yrd Mat Mat Mat Fac Low Low Fac Maximum Alert Level . | . . . . . . . . Low Security (%) 100 | 100 100 100 100 100 . . 100 Level 1 . | . . . . . . . . Level 2 . | . . . . . . . . Level 3 . | . . . . . . . . Level 4 . | . . . . . . . . Level 5 . | . . . . . . . . High Security . | . . . . . . . . Max Security . | . . . . . . . . Peak Influence 172 | . 172 114 66 114 . . 131 Initial 76 | . . 53 17 . . . 76 Average 38 | . 35 58 20 32 . . 53 Influence Increases 1894 | . 335 238 239 322 340 90 330 Destroy 0b10 Robot/C 860 | . 180 140 140 180 40 80 100 Destroy 0b10 Robot/NC 40 | . 5 5 25 . . . 5 Destroy Leader 218 | . 40 52 26 60 . 10 30 Successful Hack 105 | . 9 11 22 49 . . 14 Disable Machine 15 | . . 15 . . . . . Destroy Structure 56 | . 11 15 11 18 . . 1 Lose Combat Pursuer 600 | . 90 . 15 15 300 . 180 Influence Decreases 1894 | . 207 324 281 255 207 168 452 Entered New Map 210 | . . 75 25 . 26 38 46 Time Decay 1515 | . 207 249 256 215 151 90 347 Lost Part 169 | . . . . 40 30 40 59 Squads Dispatched 12 | . 1 2 . 4 . . 5 Investigation 3 | . 1 1 . 1 . . . Extermination 4 | . . . . 2 . . 2 Reinforcement 5 | . . 1 . 1 . . 3 Assault . | . . . . . . . . Garrison . | . . . . . . . . Intercept . | . . . . . . . . Searches Triggered . | . . . . . . . . Construction Impeded . | . . . . . . . . Haulers Reinforced . | . . . . . . . . Active Scanning Responses . | . . . . . . . . Cargo Convoy Interrupts . | . . . . . . . . Stealth | -11 -10 -9 -8 -7 -7 -7 -6 --------- Run | Yrd Mat Mat Mat Fac Low Low Fac Distress Signals 3 | . 1 . 1 1 . . . Communications Jammed . | . . . . . . . . Distress Signals . | . . . . . . . . Times Spotted 114 | . 23 9 15 17 23 5 22 Peak Tracking Total 10 | . 5 6 2 6 7 4 10 Tactical Retreats 20 | . 4 . 1 1 9 . 5 Traps | -11 -10 -9 -8 -7 -7 -7 -6 ------- Run | Yrd Mat Mat Mat Fac Low Low Fac Traps Triggered 2 | . 2 . . . . . . Indirectly . | . . . . . . . . Trap Hack Attempts . | . . . . . . . . Triggered . | . . . . . . . . Disarmed . | . . . . . . . . Reprogrammed . | . . . . . . . . Reused . | . . . . . . . . Traps Extracted . | . . . . . . . . Installed . | . . . . . . . . Triggered . | . . . . . . . . Machines | -11 -10 -9 -8 -7 -7 -7 -6 ---------- Run | Yrd Mat Mat Mat Fac Low Low Fac Machines Disabled 1 | . . 1 . . . . . Max in Single Turn 1 | . . 1 . . . . . Machines Repaired . | . . . . . . . . Machines Dismantled . | . . . . . . . . Machines Sabotaged . | . . . . . . . . Overloaded Fab Kills . | . . . . . . . . Hacking | -11 -10 -9 -8 -7 -7 -7 -6 --------- Run | Yrd Mat Mat Mat Fac Low Low Fac Machines Accessed 34 | . 8 4 5 11 . . 6 Terminals 20 | . 7 3 4 3 . . 3 Fabricators 2 | . . . . 2 . . . Repair Stations 5 | . . 1 . 2 . . 2 Recycling Units 4 | . 1 . 1 1 . . 1 Scanalyzers 3 | . . . . 3 . . . Garrison Access . | . . . . . . . . Total Hacks 104 | . 21 17 17 26 . . 23 Successful 59 | . 6 9 9 16 . . 19 Failed 44 | . 15 8 8 9 . . 4 Catastrophic 6 | . 1 2 1 2 . . . Database Lockouts 1 | . . . . 1 . . . Manual 49 | . 20 9 9 6 . . 5 Terminals 70 | . 20 12 16 6 . . 16 Fabricators 3 | . . . . 3 . . . Repair Stations 15 | . . 5 . 4 . . 6 Recycling Units 6 | . 1 . 1 3 . . 1 Scanalyzers 10 | . . . . 10 . . . Garrison Access . | . . . . . . . . Terminal Hacks 16 | . . 1 4 . . . 11 Record 1 | . . . . . . . 1 Part Schematic 1 | . . . . . . . 1 Robot Schematic 1 | . . . . . . . 1 Robot Analysis 1 | . . 1 . . . . . Branch Access Points 2 | . . . 1 . . . 1 Emergency Access Points 1 | . . . . . . . 1 Alert Level 2 | . . . . . . . 2 Locate Traps 1 | . . . 1 . . . . Dispatch Records 1 | . . . 1 . . . . Investigation Status 1 | . . . . . . . 1 Recall Reinforcements 2 | . . . . . . . 2 Hauler Manifests 1 | . . . . . . . 1 Zone Layout 1 | . . . 1 . . . . Fabricator Hacks 2 | . . . . 2 . . . Network Status 2 | . . . . 2 . . . Repair Station Hacks 11 | . . 5 . 2 . . 4 Scan Component 8 | . . 3 . 2 . . 3 Repair 3 | . . 2 . . . . 1 Recycling Unit Hacks 5 | . 1 . 1 2 . . 1 Report Inventory 4 | . 1 . 1 1 . . 1 Retrieve Components 1 | . . . . 1 . . . Scanalyzer 8 | . . . . 8 . . . Insert Component 3 | . . . . 3 . . . Analyze 3 | . . . . 3 . . . Retrieve Study 2 | . . . . 2 . . . Garrison Access Hacks . | . . . . . . . . Unauthorized Hacks 17 | . 5 3 4 2 . . 3 Terminals 17 | . 5 3 4 2 . . 3 Botnet 17 | . 5 3 4 2 . . 3 Fabricators . | . . . . . . . . Repair Stations . | . . . . . . . . Recycling Units . | . . . . . . . . Scanalyzers . | . . . . . . . . Garrison Access . | . . . . . . . . Data Cores Recovered 2 | . . . 2 . . . . Used . | . . . . . . . . Hacking Detections 26 | . 6 4 3 10 . . 3 Full Trace Events 2 | . . 1 . 1 . . . Feedback Events . | . . . . . . . . Feedback Blocked . | . . . . . . . . Robot Schematics Acquired 1 | . . . . . . . 1 Robots Built . | . . . . . . . . Authchips . | . . . . . . . . Time . | . . . . . . . . Total Robot Build Rating . | . . . . . . . . Part Schematics Acquired 4 | . . . . 3 . . 1 Parts Built . | . . . . . . . . Authchips . | . . . . . . . . Time . | . . . . . . . . Total Part Build Rating . | . . . . . . . . Part Studies Acquired 2 | . . . . 2 . . . Parts Repaired 3 | . . 2 . . . . 1 Time 136 | . . 86 . . . . 50 Parts Recycled . | . . . . . . . . Recycled Matter . | . . . . . . . . Retrieved Matter . | . . . . . . . . Retrieved Components 3 | . . . . 3 . . . Parts Scanalyzed 3 | . . . . 3 . . . Part Schematics Acquired 3 | . . . . 3 . . . Parts Damaged . | . . . . . . . . Bothacking | -11 -10 -9 -8 -7 -7 -7 -6 ------------ Run | Yrd Mat Mat Mat Fac Low Low Fac Used RIF Installer . | . . . . . . . . Robots Hacked 2 | . . . . . . . 2 Non-combat 2 | . . . . . . . 2 Combat . | . . . . . . . . Robot Hacks Applied 2 | . . . . . . . 2 find_station 1 | . . . . . . . 1 check_alert 1 | . . . . . . . 1 Relay Couplers Released . | . . . . . . . . Fabnet Peak Effective % . | . . . . . . . . Robots Rewired . | . . . . . . . . Allies Hacked . | . . . . . . . . Hacks Repelled . | . . . . . . . . Allies | -11 -10 -9 -8 -7 -7 -7 -6 -------- Run | Yrd Mat Mat Mat Fac Low Low Fac Total Allies . | . . . . . . . . Largest Group . | . . . . . . . . Highest-Rated Group . | . . . . . . . . Highest-Rated Ally . | . . . . . . . . Total Orders . | . . . . . . . . Ally Attacks . | . . . . . . . . Total Damage . | . . . . . . . . Kills . | . . . . . . . . Allies Corrupted . | . . . . . . . . Allies Melted . | . . . . . . . . Intel | -11 -10 -9 -8 -7 -7 -7 -6 ------- Run | Yrd Mat Mat Mat Fac Low Low Fac Active Infowar (turns) 23 | . . . . . . . 23 Cloaking 23 | . . . . . . . 23 Robot Analysis Total 1 | . . 1 . . . . . Derelict Logs Recovered 2 | . . . . . 1 1 . Drone Launches . | . . . . . . . . Drone Recoveries . | . . . . . . . . Exploration | -11 -10 -9 -8 -7 -7 -7 -6 ------------- Run | Yrd Mat Mat Mat Fac Low Low Fac Turns Passed 5355 | 83 1251 633 817 1072 326 197 976 Spaces Moved 4088 | 47 708 277 416 678 822 461 679 Core 87 | 5 . . . . . . 82 Treads 1847 | 42 708 277 416 404 . . . Legs 477 | . . . . 151 . . 326 Wheels . | . . . . . . . . Hover 24 | . . . . 1 . . 23 Flight 1653 | . . . . 122 822 461 248 Fastest Speed 34 | 50 160 160 160 34 34 34 37 Average Speed 108 | 148 160 160 162 132 34 36 111 Slowest Speed 200 | 160 160 160 163 200 37 40 200 Overloaded Moves . | . . . . . . . . Propulsion Burnouts . | . . . . . . . . Robots Hopped . | . . . . . . . . Potential Cave-ins . | . . . . . . . . Cave-ins Triggered . | . . . . . . . . Exploration Rate (%) 39 | 4 91 29 31 21 79 43 18 Regions Visited 7 Branch Regions 2 Pre-discovered Areas 1 | . . . . . 1 . . Known Exits Taken 5 | . 1 . 1 1 1 1 . Unknown Exits Taken 2 | 1 . 1 . . . . . Scrap Searched 9 | . . . . . 7 2 . Spaces Dug 3 | . . . 1 . 1 . 1 Terrain Destroyed 62 | . 11 12 10 20 8 . 1 Melee 3 | . . . 1 . 1 . 1 Projectile 4 | . . . . 4 . . . AOE 55 | . 11 12 9 16 7 . . Terrain Rammed . | . . . . . . . . Walls Destroyed . | . . . . . . . . Machines Disabled . | . . . . . . . . Actions | -11 -10 -9 -8 -7 -7 -7 -6 --------- Run | Yrd Mat Mat Mat Fac Low Low Fac Total 4825 | 60 801 452 501 812 865 474 860 Wait 325 | . 43 100 11 27 27 1 116 Move 4081 | 46 707 276 415 677 821 460 679 Hop . | . . . . . . . . Pick Up 120 | 7 17 29 14 29 5 1 18 Fast Attach . | . . . . . . . . Attach 62 | 6 3 10 5 16 4 2 16 Detach 1 | . . . . 1 . . . Swap 19 | 1 1 5 7 4 1 . . Drop 76 | . 7 19 12 30 4 . 4 Fire 64 | . 23 13 8 20 . . . Melee 77 | . . . 29 8 3 10 27 Ram . | . . . . . . . . Kick . | . . . . . . . . Crush . | . . . . . . . . Escape Stasis . | . . . . . . . . Rewire . | . . . . . . . . Trap . | . . . . . . . . Miscellaneous . | . . . . . . . . Route ------- -11/Scrapyard -10/Materials (discovered 3 exits: *Mat x3) -9/Materials -8/Materials -7/Factory (discovered 2 exits: *Fac / *Low) -7/Lower Caves -7/Lower Caves -6/Factory (discovered 2 exits: Low x2) History --------- Turn | Location | Event 8 | -11/Scrapyard | Discovered new exit (range 15) 84 | -11/Scrapyard | Entered Materials 313 | -10/Materials | Build established: Mutant 652 | -10/Materials | Discovered new exit (range 13) 975 | -10/Materials | Discovered new exit (range 13) 1057 | -10/Materials | Identified exit to Materials 1229 | -10/Materials | Discovered exit to Materials (range 10) 1335 | -10/Materials | Entered another Materials area 1335 | -9/Materials | Evolved 2 slots: Propulsion x1, Utility x1 1791 | -9/Materials | Discovered new exit (range 16) 1914 | -9/Materials | Repaired Hvy. EM Shotgun 1942 | -9/Materials | Repaired Lgt. Treads 1968 | -9/Materials | Entered another Materials area 1968 | -8/Materials | Evolved 2 slots: Utility x2 2493 | -8/Materials | Discovered new exit (range 15) 2622 | -8/Materials | Identified exit to Factory 2785 | -8/Materials | Entered Factory 2785 | -7/Factory | Evolved 2 slots: Power x1, Utility x1 3832 | -7/Factory | Discovered new exit (range 13) 3837 | -7/Factory | Identified exit to Lower Caves 3844 | -7/Factory | Discovered new exit (range 8) 3847 | -7/Factory | Identified exit to Factory 3852 | -7/Factory | Central database locked down 3857 | -7/Factory | Entered Lower Caves 3865 | -7/Lower Caves | Learned location of Zion (-6) 3939 | -7/Lower Caves | Encountered a Warlord checkpoint 4028 | -7/Lower Caves | Attracted the attention of an 0b10 checkpoint 4083 | -7/Lower Caves | Lost 3 parts (1p1n1w) 4180 | -7/Lower Caves | Discovered new exit (range 7) 4182 | -7/Lower Caves | Identified exit to Lower Caves 4183 | -7/Lower Caves | Entered another Lower Caves area 4200 | -7/Lower Caves | Discovered exit to Factory (range 5) 4256 | -7/Lower Caves | Lost 4 parts (1p2n1u) 4274 | -7/Lower Caves | Learned Factory security intel 4380 | -7/Lower Caves | Entered Factory 4380 | -6/Factory | Evolved 2 slots: Propulsion x1, Utility x1 4397 | -6/Factory | Identified exit to Lower Caves 4669 | -6/Factory | Build established: Hacker-Mutant 4742 | -6/Factory | Lost 6 parts (3n1u2w) 4801 | -6/Factory | Core integrity fell below 50% 4907 | -6/Factory | Core integrity fell below 20% 5059 | -6/Factory | Build established: Mutant 5226 | -6/Factory | Repaired Flexi-carbon Leg 5356 | -6/Factory | Destroyed by Y-54 Guardian via exploding Nuclear Reactor Last Messages --------------- Flexi-carbon Leg Rating: 5 Time: 50 >>Repair Repairing Flexi-carbon Leg... ETC: 50 05185_ K-01 Serf cleans the Nuclear Reactor. 05209_ ALERT: Security rotation in progress. 05226_ Repair station completes Flexi-carbon Leg repairs. 05226_ Acquired Flexi-carbon Leg. 05289_ K-01 Serf cleans the Construction Platform. 05324_ ALERT: Suspicious intruders detected, dispatching Specialist reinforcements to area. 05344_ EM Disruption Field destroyed. 05346_ Y-54 Guardian Imp. Heat Sink severed. 05348_ Remote Datajack destroyed. 05356_ Nuclear Reactor explodes. Map ----- +----------------------------------------------------+ | ?????????????????????????????????????????????????? | | ?????????????????????????????????????????????????? | | ?????????????????????????????????????????????????? | | ?????????????????????????????????????????????????? | | ?????????????????????????????????????????????????? | | ?????????????????????????????????????????????????? | | ?????????????????????????????????????????????????? | | ?????????????????????????????????????????????????? | | ?????????????????????????????????????????????????? | | ?????????????????????????????????????????????????? | | ?????????????????????????????????????????????????? | | ?????????????????????????????????????????????????? | | ?????????????????????????????????????????????????? | | ?????????????????????????????????????????????????? | | ?????????????????????????????????????????????????? | | ?????????????????????????????????????????????????? | | ?????????????????????????????????????????????????? | | ?????????????????????????????????????????????????? | | ?????????????????????????????????????????????????? | | ?????????????????????????????????????????????????? | | ???????????????????###########???????????????????? | | ????????????????? """" #???????????????????? | | ????????????????# """""" #???????????????????? | | ????????????????# ""F "" #???????????????????? | | #########??????# """ Y #??????????????????? | | #???????# @ #?????????????????? | | #???????# #??????????#+##+### | | #???????# #??????????# | | """ """ #???????#!!! ############ | | """ """ #???????#!! """ + % | | """ """ #???????#!! """ ############ | | #???????# """ #??????????# | | #???????# #??????????# | | ##+####################+################" | | | | | | | | | | | | ### ## #######+### | | ??# ## #????? ?# """"""" | | ??# ## / ???? ?# """"""" | | ??#%## ###### "??" ?# """"""" | | ###+## #????? ""?" ?# """???? | | !^*# #??????"""" ?# ????? | | """ # #?????? ? ?# ????? | | """ # #+#####+###????????? ?? ????? | | """ # #??????????????????? ?? ????? | | # +???????????????????##/#?? ????? | | """ + ####??????????????????????!??? ?????? | +----------------------------------------------------+ Best States ------------- Heat Dissipation 48 Coolant Potential 50 Energy Generation 23 Energy Capacity 380 Matter Stores 300 Matter Capacity 300 Sight Range 16 Terrain Scan Density 10 Cloak Strength 2 Armor Coverage 525 Propulsion Shielding 33 Utility Shielding 33 Evasion (%) 63 Melee Accuracy 24 Recoil Reduction 3 Offensive Hacking 22 Item Schematics ----------------- Hacking Suite | -7/Factory | Scanalyzed Imp. Melee Analysis Suite | -7/Factory | Scanalyzed Xenon Bombardment Thruster | -7/Factory | Scanalyzed Remote Shield | -6/Factory | Hacked Robot Schematics ------------------ G-50 Soldier | -6/Factory | Hacked Fabricated ------------ Nothing Repaired ---------- Hvy. EM Shotgun | 13% | -9/Materials Lgt. Treads | 31% | -9/Materials Flexi-carbon Leg | 14% | -6/Factory Studied --------- Katana | -7/Factory | Hacked Rocket Launcher | -7/Factory | Hacked Alien Tech Used ----------------- None Achievements -------------- None Challenges ------------ None Game ------ Seed CobblerSingularityTreads Manual? 0 Play Time 00:57:49 Cumulative 33.7 hours Start 2026.02.21 @ 00:04:10 End 2026.02.21 @ 01:00:26 Sessions 1 Manual Loads 0 Difficulty Rogue Special Mode None Game No. 36 Rogue 36 Adventurer 0 Explorer 0 Win Type - Total 0 Types 0/0/0/0/0/0/0/0/0/0 Lore% 39 Gallery% 32 Achievement% 26 Wizard Run 0 Options --------- Layout 1 ASCII 0 Keyboard 0 Movement Mouse Keybinds 0 Fullscreen 1 Font 24/Swanston Map View 50x35 Zoom Use 0% Tactical HUD 1 Map Filters NONE Filters NONE Steam 1 RUN: b28fa3f2-5604-4b95-93c6-d847baecab57